lending/lending_fUSD_20251124
["ID","MTS","AMOUNT","RATE_DAILY","PERIOD"]
[394790093,1763951442370,-302.01927769,0.00038255,15]
[394790095,1763951442380,-500.0,0.00038255,15]
[394790097,1763951442389,-308.7683382,0.00038255,15]
[394790099,1763951442399,-500.0,0.00038255,15]
[394790101,1763951442411,-500.0,0.00038255,15]
[394790103,1763951442420,-500.0,0.00038255,15]
[394790105,1763951442430,-500.0,0.00038255,15]
[394790107,1763951442440,-500.0,0.00038255,15]
[394790109,1763951442449,-500.0,0.00038255,15]
[394790111,1763951442459,-500.0,0.00038255,15]
[394790113,1763951442468,-500.0,0.00038255,15]
[394790115,1763951442478,-217.537,0.00038255,15]
[394790117,1763951442487,-250.0,0.00038255,15]
[394790119,1763951442497,-500.0,0.00038255,7]
[394790121,1763951442506,-500.0,0.00038255,7]
[394790123,1763951442516,-500.0,0.00038255,15]
[394790126,1763951442526,-485.38168655,0.00038255,7]
[394790128,1763951442536,-414.67783564,0.00038255,15]
[394790130,1763951442546,-500.0,0.00038255,15]
[394790132,1763951442558,-500.0,0.00038255,7]
[394790134,1763951442569,-500.0,0.00038255,7]
[394790136,1763951442579,-500.0,0.00038255,15]
[394790138,1763951442588,-500.0,0.00038255,7]
[394790140,1763951442597,-162.77468123,0.00038255,7]
[394790143,1763951442607,-500.0,0.00038255,15]
[394790145,1763951442617,-500.0,0.00038255,15]
[394790147,1763951442626,-240.27859608,0.00038255,15]
[394790149,1763951442636,-500.0,0.00038255,15]
[394790151,1763951442645,-500.0,0.00038255,15]
[394790153,1763951442655,-500.0,0.00038255,15]
[394790155,1763951442664,-500.0,0.00038255,15]
[394790157,1763951442673,-500.0,0.00038255,15]
[394790159,1763951442682,-500.0,0.00038255,15]
[394790161,1763951442692,-500.0,0.00038255,15]
[394790163,1763951442701,-500.0,0.00038255,15]
[394790165,1763951442712,-500.0,0.00038255,15]
[394790167,1763951442721,-500.0,0.00038255,15]
[394790169,1763951442730,-500.0,0.00038255,15]
[394790171,1763951442740,-500.0,0.00038255,15]
[394790173,1763951442749,-500.0,0.00038255,15]
[394790175,1763951442758,-564.47473381,0.00038255,15]
[394790177,1763951442768,-500.0,0.00038255,15]
[394790179,1763951442778,-500.0,0.00038255,15]
[394790181,1763951442791,-500.0,0.00038255,15]
[394790183,1763951442801,-500.0,0.00038255,15]
[394790185,1763951442811,-500.0,0.00038255,15]
[394790187,1763951442820,-500.0,0.00038255,15]
[394790189,1763951442830,-818.47,0.00038255,14]
[394790191,1763951442840,-520.69666689,0.00038255,8]
[394790193,1763951442849,-500.0,0.00038255,2]
[394790195,1763951442862,-500.0,0.00038255,2]
[394790197,1763951442872,-500.0,0.00038255,2]
[394790199,1763951442882,-235.32756878,0.00038256,2]
[394790201,1763951442892,-760000.0,0.00038256,2]
[394790203,1763951442901,-1000.0,0.00038256,2]
[394790205,1763951442911,-200.0,0.00038256,2]
[394790207,1763951442921,-188.31022158,0.00038256,2]
[394790209,1763951442930,-1408.76445909,0.00038256,13]
[394790211,1763951442940,-10360.31827875,0.00038259,2]
[394790215,1763951442962,-22935.65831449,0.00038259,2]
[394790217,1763951442971,-532.95351557,0.00038273,5]
[394790219,1763951442981,-500.80840812,0.00038273,5]
[394790221,1763951442990,-500.0,0.00038273,2]
[394790223,1763951443000,-154.64330322,0.00038273,5]
[394790225,1763951443011,-502.6374607,0.00038273,5]
[394790228,1763951443019,-293.00339512,0.00038273,5]
[394790231,1763951443031,-200.7607384,0.00038273,5]
[394790234,1763951443042,-500.0,0.00038273,5]
[394790237,1763951443051,-502.28076524,0.00038273,5]
[394790240,1763951443061,-500.0,0.00038273,5]
[394790242,1763951443071,-500.77407268,0.00038273,3]
[394790244,1763951443080,-275.20646227,0.00038273,5]
[394790246,1763951443089,-500.0,0.00038273,5]
[394790248,1763951443099,-500.0,0.00038273,5]
[394790250,1763951443108,-150.62,0.00038346,2]
[394790252,1763951443118,-16504.76645236,0.0003835,30]
[394790254,1763951443128,-500.0,0.00038355,2]
[394790256,1763951443138,-29564.56462478,0.00038356,2]
[394790258,1763951443147,-500.0,0.00038356,8]
[394790260,1763951443156,-502.38586654,0.00038356,8]
[394790262,1763951443164,-500.0,0.00038356,8]
[394790264,1763951443173,-500.0,0.00038356,8]
[394790266,1763951443183,-500.0,0.00038356,8]
[394790268,1763951443192,-500.0,0.00038356,8]
[394790270,1763951443202,-500.0,0.00038356,8]
[394790272,1763951443211,-500.0,0.00038356,8]
[394790274,1763951443220,-500.0,0.00038356,8]
[394790276,1763951443229,-500.0,0.00038356,8]
[394790278,1763951443238,-500.0,0.00038356,8]
[394790280,1763951443248,-500.0,0.00038356,8]
[394790282,1763951443257,-500.0,0.00038356,8]
[394790284,1763951443266,-500.0,0.00038356,8]
[394790286,1763951443276,-487.960392,0.00038356,8]
[394790288,1763951443287,-285.430702,0.00038356,8]
[394790290,1763951443298,-515.762098,0.00038356,8]
[394790292,1763951443309,-500.0,0.00038356,8]
[394790294,1763951443319,-516.99874767,0.00038356,8]
[394790296,1763951443329,-500.0,0.00038356,8]
[394790298,1763951443340,-502.16494796,0.00038356,8]
[394790300,1763951443350,-500.0,0.00038356,8]
[394790302,1763951443359,-500.0,0.00038356,8]
[394790305,1763951443370,-504.56949586,0.00038356,8]
[394790307,1763951443379,-503.4310425,0.00038356,8]
[394790309,1763951443388,-500.0,0.00038356,8]
[394790311,1763951443398,-150.0,0.00038356,8]
[394790312,1763951443408,-520.98569174,0.00038356,8]
[394790315,1763951443417,-500.0,0.00038356,8]
[394790316,1763951443427,-500.0,0.00038356,8]
[394790318,1763951443436,-566.92658594,0.00038356,8]
[394790321,1763951443446,-534.12370559,0.00038356,8]
[394790323,1763951443456,-492.26609778,0.00038356,8]
[394790325,1763951443466,-535.10523149,0.00038356,8]
[394790327,1763951443475,-507.97840636,0.00038356,8]
[394790329,1763951443484,-555.11153235,0.00038356,8]
[394790331,1763951443493,-534.94727096,0.00038356,8]
[394790333,1763951443503,-500.0,0.00038356,8]
[394790335,1763951443512,-582.5710817,0.00038356,8]
[394790337,1763951443521,-551.5939733,0.00038356,8]
[394790339,1763951443531,-509.2245186,0.00038356,8]
[394790341,1763951443541,-406.95,0.00038356,8]
[394790343,1763951443551,-500.0,0.00038356,8]
[394790345,1763951443560,-583.21669568,0.00038356,8]
[394790347,1763951443569,-543.37318736,0.00038356,8]
[394790348,1763951443579,-500.0,0.00038356,8]
[394790349,1763951443587,-500.0,0.00038356,8]
[394790350,1763951443596,-537.59736235,0.00038356,8]
[394790351,1763951443605,-500.0,0.00038356,8]
[394790352,1763951443614,-525.05099125,0.00038356,8]
[394790353,1763951443623,-502.03540075,0.00038356,8]
[394790354,1763951443633,-511.25052839,0.00038356,8]
[394790355,1763951443642,-500.0,0.00038356,8]
[394790356,1763951443651,-500.0,0.00038356,8]
[394790357,1763951443660,-522.00997517,0.00038356,8]
[394790358,1763951443669,-500.0,0.00038356,8]
[394790359,1763951443678,-500.0,0.00038356,8]
[394790360,1763951443690,-500.0,0.00038356,8]
[394790361,1763951443700,-500.0,0.00038356,8]
[394790362,1763951443709,-500.0,0.00038356,8]
[394790363,1763951443718,-500.0,0.00038356,8]
[394790364,1763951443728,-542.71831095,0.00038356,8]
[394790366,1763951443737,-500.0,0.00038356,8]
[394790367,1763951443746,-500.0,0.00038356,8]
[394790369,1763951443756,-501.66384493,0.00038356,8]
[394790371,1763951443765,-442.82551279,0.00038356,8]
[394790373,1763951443775,-500.0,0.00038356,8]
[394790375,1763951443785,-510.78947609,0.00038356,8]
[394790377,1763951443797,-400.0,0.00038356,8]
[394790379,1763951443806,-500.0,0.00038356,8]
[394790381,1763951443816,-508.10038665,0.00038356,8]
[394790383,1763951443825,-500.0,0.00038356,8]
[394790385,1763951443837,-500.0,0.00038356,8]
[394790387,1763951443847,-549.83817519,0.00038356,8]
[394790389,1763951443856,-500.0,0.00038356,8]
[394790391,1763951443869,-605.447515,0.00038356,8]
[394790393,1763951443879,-587.61186763,0.00038356,8]
[394790395,1763951443888,-500.0,0.00038356,8]
[394790397,1763951443898,-557.44385165,0.00038356,8]
[394790399,1763951443908,-165.19485715,0.00038356,8]
[394790401,1763951443917,-500.0,0.00038356,8]
[394790402,1763951443927,-577.90882616,0.00038356,8]
[394790403,1763951443936,-1000.0,0.00038356,120]
[394790404,1763951443946,-500.0,0.00038356,8]
[394790405,1763951443955,-185.681047,0.00038356,8]
[394790406,1763951443964,-500.0,0.00038356,8]
[394790407,1763951443974,-500.0,0.00038356,8]
[394790408,1763951443983,-509.21439352,0.00038356,8]
[394790409,1763951443992,-554.91896642,0.00038356,8]
[394790410,1763951444002,-500.0,0.00038356,8]
[394790411,1763951444011,-961.492603,0.00038356,8]
[394790412,1763951444021,-500.0,0.00038356,8]
[394790413,1763951444031,-521.85310813,0.00038356,8]
[394790414,1763951444040,-576.55807087,0.00038356,8]
[394790415,1763951444050,-505.63435798,0.00038356,8]
[394790416,1763951444059,-538.89872882,0.00038356,8]
[394790417,1763951444069,-572.34046683,0.00038356,8]
[394790418,1763951444078,-500.0,0.00038356,8]
[394790419,1763951444088,-509.66321015,0.00038356,8]
[394790420,1763951444098,-500.0,0.00038356,8]
[394790421,1763951444108,-297.95084901,0.00038356,8]
[394790422,1763951444117,-500.0,0.00038356,8]
[394790423,1763951444128,-500.0,0.00038356,8]
[394790424,1763951444138,-500.0,0.00038356,8]
[394790425,1763951444148,-500.0,0.00038356,8]
[394790426,1763951444157,-500.0,0.00038356,8]
[394790427,1763951444166,-500.0,0.00038356,8]
[394790428,1763951444175,-237.40652062,0.00038356,8]
[394790429,1763951444185,-537.98022275,0.00038356,8]
[394790430,1763951444194,-507.38294712,0.00038356,8]
[394790431,1763951444204,-506.32614392,0.00038356,8]
[394790432,1763951444213,-504.10977127,0.00038356,8]
[394790433,1763951444223,-547.78656296,0.00038356,8]
[394790434,1763951444232,-534.42161943,0.00038356,8]
[394790435,1763951444241,-507.675046,0.00038356,8]
[394790436,1763951444251,-588.76,0.00038356,8]
[394790437,1763951444261,-505.18661115,0.00038356,8]
[394790438,1763951444270,-502.29816521,0.00038356,8]
[394790439,1763951444279,-500.0,0.00038356,8]
[394790440,1763951444289,-584.65080996,0.00038356,8]
[394790441,1763951444299,-509.19801536,0.00038356,8]
[394790442,1763951444308,-500.0,0.00038356,8]
[394790443,1763951444318,-500.0,0.00038356,2]
[394790444,1763951444327,-500.0,0.00038356,8]
[394790445,1763951444337,-500.0,0.00038356,8]
[394790446,1763951444347,-610.13206671,0.00038356,8]
[394790447,1763951444357,-523.79052351,0.00038356,8]
[394790448,1763951444366,-559.26170606,0.00038356,8]
[394790449,1763951444375,-542.36465483,0.00038356,8]
[394790450,1763951444384,-500.0,0.00038356,8]
[394790451,1763951444393,-502.08470376,0.00038356,8]
[394790452,1763951444403,-500.0,0.00038356,8]
[394790453,1763951444414,-537.96691744,0.00038356,8]
[394790454,1763951444423,-536.05763105,0.00038356,8]
[394790455,1763951444432,-550.09644596,0.00038356,8]
[394790456,1763951444442,-622.60249798,0.00038356,8]
[394790457,1763951444451,-533.95458208,0.00038356,8]
[394790458,1763951444461,-1000.0,0.00038356,8]
[394790459,1763951444471,-500.0,0.00038356,8]
[394790460,1763951444480,-500.0,0.00038356,8]
[394790461,1763951444490,-500.0,0.00038356,8]
[394790462,1763951444499,-630.64826831,0.00038356,8]
[394790463,1763951444508,-504.20093302,0.00038356,8]
[394790464,1763951444518,-503.10760081,0.00038356,8]
[394790465,1763951444528,-500.0,0.00038356,8]
[394790466,1763951444540,-500.0,0.00038356,8]
[394790467,1763951444551,-490.0,0.00038356,8]
[394790468,1763951444560,-500.0,0.00038356,8]
[394790469,1763951444571,-500.0,0.00038356,8]
[394790470,1763951444580,-500.0,0.00038356,8]
[394790471,1763951444590,-573.66,0.00038356,8]
[394790472,1763951444600,-592.48590054,0.00038356,8]
[394790473,1763951444609,-500.0,0.00038356,8]
[394790474,1763951444619,-570.01388863,0.00038356,8]
[394790475,1763951444628,-585.42615123,0.00038356,8]
[394790476,1763951444639,-500.0,0.00038356,8]
[394790477,1763951444648,-500.0,0.00038356,8]
[394790478,1763951444659,-512.6,0.00038356,8]
[394790479,1763951444668,-500.0,0.00038356,8]
[394790480,1763951444678,-500.0,0.00038356,8]
[394790481,1763951444688,-500.0,0.00038356,8]
[394790482,1763951444696,-572.77,0.00038356,8]
[394790483,1763951444705,-605.73,0.00038356,8]
[394790484,1763951444715,-574.20464116,0.00038356,8]
[394790485,1763951444725,-289.05068627,0.00038356,8]
[394790486,1763951444735,-500.0,0.00038356,8]
[394790487,1763951444745,-500.0,0.00038356,8]
[394790488,1763951444755,-500.0,0.00038356,8]
[394790489,1763951444763,-500.0,0.00038356,8]
[394790490,1763951444773,-500.0,0.00038356,8]
[394790491,1763951444785,-500.0,0.00038356,8]
[394790492,1763951444796,-500.0,0.00038356,8]
[394790493,1763951444806,-500.0,0.00038356,8]
[394790494,1763951444815,-500.0,0.00038356,8]
[394790495,1763951444826,-588.53005655,0.00038356,8]
[394790496,1763951444836,-527.60275221,0.00038356,8]
[394790497,1763951444845,-500.0,0.00038356,8]
[394790498,1763951444855,-500.0,0.00038356,8]
[394790499,1763951444866,-500.0,0.00038356,8]
[394790500,1763951444876,-500.0,0.00038356,8]
[394790501,1763951444886,-493.79612968,0.00038356,8]
[394790502,1763951444895,-500.0,0.00038356,8]
[394790503,1763951444905,-500.0,0.00038356,8]
[394790504,1763951444915,-1579.48,0.00038356,8]
[394790505,1763951444925,-2216.21,0.00038356,8]
[394790506,1763951444934,-504.86316533,0.00038356,8]
[394790507,1763951444944,-500.0,0.00038356,8]
[394790508,1763951444954,-500.0,0.00038356,8]
[394790509,1763951444963,-579.61820084,0.00038356,8]
[394790510,1763951444973,-500.0,0.00038356,8]
[394790511,1763951444983,-500.0,0.00038356,8]
[394790512,1763951444992,-500.0,0.00038356,8]
[394790513,1763951445182,-500.0,0.00038356,8]
[394790514,1763951445192,-500.0,0.00038356,8]
[394790515,1763951445202,-573.49940914,0.00038356,8]
[394790516,1763951445212,-603.01314789,0.00038356,8]
[394790517,1763951445222,-500.0,0.00038356,8]
[394790518,1763951445231,-500.0,0.00038356,8]
[394790519,1763951445241,-412.88577983,0.00038356,8]
[394790520,1763951445251,-512.87819107,0.00038356,8]
[394790521,1763951445261,-538.40574126,0.00038356,8]
[394790522,1763951445271,-500.0,0.00038356,8]
[394790523,1763951445281,-580.73079074,0.00038356,8]
[394790524,1763951445291,-500.0,0.00038356,8]
[394790525,1763951445301,-649.80743337,0.00038356,8]
[394790526,1763951445310,-261.912654,0.00038356,8]
[394790527,1763951445320,-500.0,0.00038356,8]
[394790528,1763951445329,-500.0,0.00038356,8]
[394790529,1763951445339,-500.0,0.00038356,8]
[394790530,1763951445348,-500.0,0.00038356,8]
[394790531,1763951445359,-500.0,0.00038356,8]
[394790532,1763951445374,-500.0,0.00038356,8]
[394790533,1763951445388,-500.0,0.00038356,8]
[394790534,1763951445399,-620.19067103,0.00038356,8]
[394790535,1763951445408,-561.33927907,0.00038356,8]
[394790536,1763951445418,-520.2667676,0.00038356,8]
[394790537,1763951445427,-8.8747307,0.00038356,8]
[394790538,1763951445607,-491.1252693,0.00038356,8]
[394790539,1763951445617,-500.0,0.00038356,8]
[394790540,1763951445627,-554.83558256,0.00038356,8]
[394790541,1763951445636,-500.0,0.00038356,8]
[394790542,1763951445646,-590.7320999,0.00038356,8]
[394790543,1763951445656,-560.36680129,0.00038356,8]
[394790544,1763951445666,-500.0,0.00038356,8]
[394790545,1763951445676,-500.0,0.00038356,8]
[394790546,1763951445685,-500.0,0.00038356,8]
[394790548,1763951445695,-500.0,0.00038356,8]
[394790550,1763951445705,-500.0,0.00038356,8]
[394790552,1763951445715,-500.0,0.00038356,8]
[394790554,1763951445725,-500.0,0.00038356,8]
[394790556,1763951445735,-500.0,0.00038356,8]
[394790558,1763951445744,-500.0,0.00038356,8]
[394790560,1763951445753,-1103.8,0.00038356,8]
[394790562,1763951445762,-524.70637602,0.00038356,8]
[394790564,1763951445772,-500.0,0.00038356,8]
[394790567,1763951445784,-609.95928192,0.00038356,8]
[394790568,1763951445797,-500.0,0.00038356,8]
[394790570,1763951445806,-500.0,0.00038356,2]
[394790572,1763951445816,-500.0,0.00038356,2]
[394790574,1763951445826,-500.0,0.00038356,2]
[394790576,1763951445836,-256.29557933,0.00038356,2]
[394790579,1763951445846,-500.0,0.00038356,8]
[394790580,1763951445856,-500.0,0.00038356,8]
[394790582,1763951445865,-500.0,0.00038356,8]
[394790585,1763951445875,-500.0,0.00038356,8]
[394790587,1763951445885,-583.2015843,0.00038356,8]
[394790589,1763951445894,-559.59655117,0.00038356,8]
[394790591,1763951445903,-597.14351889,0.00038356,8]
[394790593,1763951445912,-270.771238,0.00038356,8]
[394790595,1763951445921,-500.0,0.00038356,8]
[394790597,1763951445931,-640.79267442,0.00038356,8]
[394790599,1763951445941,-500.0,0.00038356,8]
[394790601,1763951445950,-500.0,0.00038356,2]
[394790603,1763951445959,-500.0,0.00038356,8]
[394790605,1763951445970,-500.0,0.00038356,8]
[394790607,1763951445979,-434.46699267,0.00038356,8]
[394790609,1763951445988,-500.0,0.00038356,8]
[394790611,1763951445997,-500.0,0.00038356,8]
[394790613,1763951446007,-598.07595626,0.00038356,8]
[394790616,1763951446017,-534.54951944,0.00038356,8]
[394790618,1763951446026,-500.0,0.00038356,8]
[394790620,1763951446037,-500.0,0.00038356,8]
[394790622,1763951446046,-539.18456633,0.00038356,8]
[394790623,1763951446055,-500.0,0.00038356,8]
[394790625,1763951446064,-500.0,0.00038356,8]
[394790627,1763951446073,-500.0,0.00038356,8]
[394790629,1763951446083,-504.03209784,0.00038356,8]
[394790630,1763951446094,-500.0,0.00038356,8]
[394790631,1763951446103,-500.0,0.00038356,8]
[394790632,1763951446112,-547.25178054,0.00038356,8]
[394790633,1763951446122,-589.23406006,0.00038356,8]
[394790634,1763951446131,-500.0,0.00038356,8]
[394790635,1763951446140,-500.0,0.00038356,8]
[394790636,1763951446153,-500.0,0.00038356,8]
[394790637,1763951446163,-2373.38,0.00038356,8]
[394790638,1763951446172,-532.69504368,0.00038356,8]
[394790639,1763951446181,-500.0,0.00038356,8]
[394790640,1763951446191,-500.0,0.00038356,8]
[394790641,1763951446200,-324.21318241,0.00038356,8]
[394790642,1763951446211,-500.0,0.00038356,8]
[394790643,1763951446221,-175.01456298,0.00038356,8]
[394790644,1763951446231,-500.0,0.00038356,8]
[394790645,1763951446240,-500.0,0.00038356,8]
[394790646,1763951446250,-500.0,0.00038356,8]
[394790647,1763951446259,-500.0,0.00038356,8]
[394790648,1763951446268,-567.6179792,0.00038356,8]
[394790649,1763951446278,-500.0,0.00038356,8]
[394790650,1763951446288,-523.63661638,0.00038356,8]
[394790651,1763951446297,-500.0,0.00038356,8]
[394790652,1763951446306,-500.0,0.00038356,8]
[394790653,1763951446315,-500.0,0.00038356,8]
[394790654,1763951446324,-500.0,0.00038356,8]
[394790655,1763951446333,-500.0,0.00038356,8]
[394790656,1763951446343,-500.0,0.00038356,8]
[394790657,1763951446352,-500.0,0.00038356,8]
[394790658,1763951446360,-467.31582032,0.00038356,8]
[394790659,1763951446369,-500.0,0.00038356,8]
[394790660,1763951446378,-500.0,0.00038356,8]
[394790661,1763951446387,-500.0,0.00038356,8]
[394790662,1763951446396,-501.16749386,0.00038356,8]
[394790663,1763951446405,-500.0,0.00038356,8]
[394790664,1763951446414,-568.39489145,0.00038356,8]
[394790665,1763951446423,-500.0,0.00038356,8]
[394790666,1763951446434,-500.0,0.00038356,8]
[394790667,1763951446443,-500.0,0.00038356,8]
[394790668,1763951446452,-500.0,0.00038356,8]
[394790669,1763951446461,-500.0,0.00038356,8]
[394790670,1763951446471,-332.39376917,0.00038356,8]
[394790671,1763951446483,-167.60623083,0.00038356,8]
[394790672,1763951446492,-500.0,0.00038356,8]
[394790673,1763951446501,-213.16376917,0.00038356,8]
[394790674,1763951446520,-426.18180536,0.00038356,8]
[394790675,1763951446529,-631.66117727,0.00038356,8]
[394790676,1763951446540,-505.68061316,0.00038356,8]
[394790677,1763951446550,-223.85640419,0.00038356,8]
[394790678,1763951446573,-276.14359581,0.00038356,8]
[394790679,1763951446582,-500.0,0.00038356,8]
[394790680,1763951446591,-311.66798399,0.00038356,8]
[394790681,1763951446987,-188.33201601,0.00038356,8]
[394790682,1763951446997,-500.60006549,0.00038356,8]
[394790683,1763951447006,-426.30753509,0.00038356,8]
[394790684,1763951447019,-76.04087137,0.00038356,8]
[394790685,1763951447028,-500.0,0.00038356,8]
[394790686,1763951447038,-260.23480715,0.00038356,8]
[394790687,1763951447163,-412.29959735,0.000209,2]
[394790688,1763951447172,-235.37040265,0.00038356,8]
[394790689,1763951447198,-4.3947902,0.00038356,8]
[394790690,1763951447207,-273.87353971,0.00038356,8]
[394790691,1763951447216,-500.0,0.00038356,8]
[394790692,1763951447225,-500.0,0.00038356,8]
[394790693,1763951447234,-500.0,0.00038356,8]
[394790694,1763951447243,-184.01250614,0.00038356,8]
[394790717,1763952631362,-166.0,0.00026,7]
[394790718,1763952631371,-131.13635542,0.000324,120]
[394790721,1763952631466,-18.86364458,0.000324,120]
[394790722,1763952631476,-300.0,0.00032442,119]
[394790723,1763952631486,-5041.92906044,0.00032484,2]
[394790724,1763952631496,-157.39512124,0.00032743,67]
[394790725,1763952631506,-300.0,0.00032843,119]
[394790726,1763952631515,-300.0,0.00032843,119]
[394790727,1763952631524,-300.0,0.00032843,119]
[394790728,1763952631533,-400.0,0.00033636,2]
[394790729,1763952631541,-2862.3,0.00033637,2]
[394790730,1763952631550,-157.39512119,0.00034037,70]
[394790731,1763952631559,-168.1246529,0.00034915,7]
[394790732,1763952631568,-162.95104737,0.00034915,7]
[394790733,1763952631577,-150.0,0.00034915,7]
[394790734,1763952631587,-500.0,0.00034973,2]
[394790735,1763952631595,-500.76126021,0.00034973,5]
[394790736,1763952631604,-190.74008615,0.00034973,5]
[394790737,1763952631613,-500.0,0.00034973,5]
[394790738,1763952631622,-500.0,0.00034973,5]
[394790739,1763952631631,-58847.58,0.00035,2]
[394790740,1763952631640,-52.26903086,0.00035224,2]
[394790741,1763952631726,-1115.5,0.00035224,2]
[394790746,1763952637342,-222.5157059,0.00035224,2]
[394790747,1763952637351,-157.39512119,0.00035331,73]
[394790748,1763952637361,-1000.0,0.00035521,2]
[394790749,1763952637371,-1000.0,0.00035521,5]
[394790750,1763952637385,-300.0,0.0003564,119]
[394790751,1763952637396,-216.53069,0.00035888,30]
[394790752,1763952637406,-3195.05056872,0.00036025,2]
[394790753,1763952637415,-169.35,0.0003605,2]
[394790754,1763952637429,-141.03219292,0.00036068,2]
[394790755,1763952637441,-1502.61172233,0.00036068,2]
[394790756,1763952637451,-282.10535313,0.00036068,5]
[394790757,1763952637460,-216.53069,0.00036088,30]
[394790758,1763952637469,-200.0,0.00036117,2]
[394790759,1763952637479,-836.05,0.00036148,2]
[394790760,1763952637489,-216.53069,0.00036288,30]
[394790761,1763952637499,-836.35,0.00036357,120]
[394790762,1763952637509,-299.99,0.000364,30]
[394790763,1763952637520,-999.0,0.00036401,3]
[394790764,1763952637530,-216.53069,0.00036488,30]
[394790765,1763952637539,-517.07690042,0.00036496,8]
[394790766,1763952637553,-6335.02,0.00036517,2]
[394790767,1763952637563,-152.0,0.00036536,2]
[394790768,1763952637573,-12871.61306329,0.00036536,2]
[394790769,1763952637585,-1852.42,0.00036559,2]
[394790770,1763952637595,-157.39512119,0.00036624,76]
[394790771,1763952637605,-216.53069,0.00036688,30]
[394790772,1763952637615,-200.0,0.00036834,2]
[394790773,1763952637628,-534.34453477,0.00036845,8]
[394790774,1763952637639,-500.0,0.00036845,8]
[394790775,1763952637649,-500.0,0.00036845,8]
[394790776,1763952637659,-514.72047397,0.00036845,8]
[394790777,1763952637670,-153.0,0.00036881,2]
[394790778,1763952637683,-216.53069,0.00036888,30]
[394790779,1763952637693,-721.7689,0.00036888,7]
[394790780,1763952637703,-7917.68126047,0.00036915,2]
[394790781,1763952637715,-1500.0,0.00036998,120]
[394790782,1763952637727,-2379.58,0.0003707,2]
[394790783,1763952637736,-216.53069,0.00037088,30]
[394790784,1763952637746,-607.34,0.00037178,2]
[394790785,1763952637755,-167.22,0.00037264,2]
[394790787,1763952637764,-216.53069,0.00037288,30]
[394790789,1763952637774,-167.241,0.00037288,48]
[394790791,1763952637783,-1756.405,0.00037288,48]
[394790793,1763952637792,-1659.04342146,0.000373,2]
[394790794,1763952637802,-11918.77,0.00037429,2]
[394790795,1763952637811,-701.61,0.00037441,2]
[394790796,1763952637824,-957.74,0.00037441,2]
[394790797,1763952637834,-216.53069,0.00037488,30]
[394790798,1763952637843,-235.0806,0.00037626,2]
[394790799,1763952637853,-280.6181,0.00037626,2]
[394790800,1763952637863,-9655.13,0.00037663,2]
[394790801,1763952637872,-216.53069,0.00037688,30]
[394790802,1763952637881,-177.64,0.00037726,2]
[394790803,1763952637891,-417.48,0.00037726,2]
[394790804,1763952637900,-551.17,0.00037726,2]
[394790805,1763952637909,-169.75,0.00037726,2]
[394790806,1763952637918,-177.64,0.00037726,2]
[394790807,1763952637928,-417.48,0.00037726,2]
[394790808,1763952637937,-169.75,0.00037726,2]
[394790809,1763952637947,-177.64,0.00037726,2]
[394790810,1763952637956,-417.48,0.00037726,2]
[394790811,1763952637966,-551.17,0.00037726,2]
[394790812,1763952637976,-169.75,0.00037726,2]
[394790813,1763952637984,-177.64,0.00037726,2]
[394790814,1763952637994,-551.17,0.00037726,2]
[394790815,1763952638004,-417.48,0.00037726,2]
[394790816,1763952638018,-353.18,0.00037726,2]